Cogmind - Beta 9.3 @@@ ROGUE MODE // 2019.12.20 @ 15:03:57 // Winter2019/RPGLIKE Player: Cassie Rose Result: Destroyed by Y-45 Defender with Beam Rifle Performance ------------- Evolutions (1) 500 Regions Visited (2) 400 Robots Destroyed (35) 175 Value Destroyed (685) 685 Prototype IDs (0) 0 Alien Tech Used (0) 0 Bonus (0) 0 TOTAL SCORE: 1760 Bonus ------- None Cogmind --------- Core Integrity 0/600 Matter 300/300 Energy 83/100 System Corruption 0% Temperature Cool (9) Movement Flying (40) Location -9/Materials Parts ------- > --- POWER (2) -------- (None) > --- PROPULSION (2) --- Flight Unit > --- UTILITY (4) ------ Heat Sink Signal Interpreter Improved Terrain Scanner Seismic Analyzer > --- WEAPON (1) ------- Heavy Hammer > --- INVENTORY (0) ---- (None) Peak State ------------ > --- POWER ------------ Light Ion Engine Light Nuclear Core > --- PROPULSION ------- Flight Unit Flight Unit > --- UTILITY ---------- Heat Sink Signal Interpreter Improved Terrain Scanner Seismic Analyzer > --- WEAPON ----------- Heavy Hammer > --- INVENTORY -------- (None) [Rating: 13] Favorites ----------- Power Light Ion Engine Engine Light Ion Engine Power Core Light Nuclear Core Propulsion Flight Unit Wheel Wheel Flight Unit Flight Unit Utility Improved Terrain Scanner Device Improved Terrain Scanner Processor Seismic Analyzer Weapon Heavy Hammer Energy Gun EM Pulse Gun Impact Weapon Heavy Hammer Build | -11 -10 -9 ------- Run | Scr Mat Mat Slots Evolved 5 | 3 . 2 Power 1 | 1 . . Propulsion 1 | 1 . . Utility 3 | 1 . 2 Weapon . | . . . Parts Attached 14 | 7 5 2 Power 3 | 2 1 . Engine 2 | 2 . . Core 1 | . 1 . Reactor . | . . . Propulsion 5 | 2 3 . Treads . | . . . Leg . | . . . Wheel 2 | 2 . . Hover . | . . . Flight 3 | . 3 . Utility 4 | 2 . 2 Device 2 | 1 . 1 Storage . | . . . Processor 2 | 1 . 1 Hackware . | . . . Protection . | . . . Artifact . | . . . Weapon 2 | 1 1 . Energy Gun 1 | 1 . . Energy Cannon . | . . . Ballistic Gun . | . . . Ballistic Cannon . | . . . Launcher . | . . . Special Weapon . | . . . Impact Weapon 1 | . 1 . Slashing Weapon . | . . . Piercing Weapon . | . . . Special Melee Weapon . | . . . Unidentified Prototypes . | . . . Parts Lost 3 | . . 3 Power 2 | . . 2 Propulsion 1 | . . 1 Utility . | . . . Weapon . | . . . Highest Loss Streak 3 | . . 3 Average Slot Usage (%) 95 | . 100 88 Engine 17 | . 22 9 Core 7 | . 6 9 Wheel 3 | . 6 . Flight 20 | . 21 19 Device 16 | . 14 21 Processor 14 | . 14 16 Energy Gun 2 | . 3 . Impact Weapon 10 | . 10 11 Naked Turns . | . . . Heaviest Build 13 | 9 12 13 Greatest Support 28 | 25 25 28 Greatest Overweight (x) . | . . . Average Overweight (x) . | . . . Largest Inventory Capacity . | . . . Average Capacity . | . . . Most Carried . | . . . Average Carried . | . . . Final Capacity . | . . . Final Carried . | . . . Class Distribution -------------------- 82% | Scavenger-Mutant 17% | Mutant Dominant Class ---------------- Scavenger-Mutant | -10/Materials Scavenger-Mutant | -9/Materials Resources | -11 -10 -9 ----------- Run | Scr Mat Mat Matter Collected 340 | 270 50 20 Remotely . | . . . Salvage Created 963 | 102 531 330 Parts 57 | 7 31 19 Haulers Intercepted 2 | . 2 . Recyclers Shooed 1 | 1 . . Parts Field Recycled . | . . . Retrieved Matter . | . . . Parts Self-Destructed . | . . . Prevented . | . . . Kills | -11 -10 -9 ------- Run | Scr Mat Mat Combat Hostiles Destroyed 19 | . 11 8 Melee 10 | . 4 6 Guns 5 | . 5 . Classes Destroyed 10 | 2 7 1 Worker 1 | . 1 . Builder 2 | . 2 . Tunneler 4 | 1 3 . Hauler 2 | . 2 . Recycler 2 | 1 1 . Operator 1 | . 1 . Watcher 4 | . 3 1 Swarmer 6 | . 6 . Grunt 11 | . 5 6 Sentry 2 | . . 2 Best Kill Streak 5 | 2 5 4 Combat Bots Only 4 | . 4 3 Max Kills in Single Turn 1 | 1 1 1 Gunslinging . | . . . Exploded . | . . . Melee 1 | . 1 1 Uniques/NPCs Destroyed . | . . . Combat | -11 -10 -9 -------- Run | Scr Mat Mat Damage Taken 1431 | . 353 1078 Core 1177 | . 280 897 Absorbed by Shields . | . . . Redirected to Core 855 | . 230 625 Core Remaining (%) 97 | 100 95 . Volleys Fired 19 | 3 16 . Largest 1 | 1 1 . Hottest 40 | 40 40 . Shots Fired 19 | 3 16 . Gun 19 | 3 16 . Cannon . | . . . Launcher . | . . . Special . | . . . Kinetic . | . . . Thermal . | . . . Explosive . | . . . Electromagnetic 19 | 3 16 . Robot Hit Streak 6 | 3 6 . Robot Miss Streak 3 | . 3 . Penetration Max . | . . . Secondary Targets . | . . . Shots Hit Robots 92 | 3 42 47 Core Hits 27 | 3 16 8 Critical Hits . | . . . Critical Kills . | . . . Critical Parts Destroyed . | . . . Melee Attacks 84 | . 37 47 Impact 84 | . 37 47 Slashing . | . . . Piercing . | . . . Sneak Attacks 7 | . 7 . Combat Hostiles . | . . . Follow-up Attacks . | . . . Damage Inflicted 2747 | 40 1583 1124 Guns 195 | 40 155 . Cannons . | . . . Explosions 39 | . 39 . Melee 2513 | . 1389 1124 Ramming . | . . . Kinetic . | . . . Thermal 39 | . 39 . Explosive . | . . . Electromagnetic 195 | 40 155 . Impact 2513 | . 1389 1124 Slashing . | . . . Piercing . | . . . Highest Corruption 2 | . 2 . Average Corruption 2 | . 2 . Corruption Purged . | . . . Effects 3 | . 3 . Message Errors 1 | . 1 . Energy Discharges 1 | . 1 . Targeting Errors 1 | . 1 . Overload Shots . | . . . Overflow Damage 464 | . 423 41 Projectiles . | . . . Explosions 19 | . 19 . Melee 445 | . 404 41 Knockbacks 10 | . 7 3 Impact 9 | . 7 2 Kinetic . | . . . Secondary 1 | . . 1 Self-Inflicted Damage . | . . . Shots . | . . . Rammed . | . . . Targets Rammed . | . . . Kicked . | . . . Crushed . | . . . Highest Temperature 55 | 20 55 1 Average Temperature 19 | 10 21 1 Received Heat Transfer 591 | . 120 471 Siege Activations . | . . . Robots Corrupted . | . . . Combat Hostiles . | . . . Parts Fried 13 | . 10 3 Impact Corruptions 24 | . 20 4 Robots Melted . | . . . Combat Hostiles . | . . . Parts Melted . | . . . Heat Transferred 50 | . 50 . Parts Sabotaged . | . . . Parts Stolen . | . . . Parts Stripped . | . . . Power Chain Reactions 1 | . 1 . Missiles Intercepted . | . . . Alert | -11 -10 -9 ------- Run | Scr Mat Mat Peak Influence 381 | 10 381 330 Average Influence 203 | 3 204 230 Maximum Alert Level 1 | . 1 1 Low Security (%) 48 | 100 51 36 Level 1 51 | . 48 63 Level 2 . | . . . Level 3 . | . . . Level 4 . | . . . Level 5 . | . . . High Security . | . . . Max Security . | . . . Squads Dispatched 2 | . 1 1 Investigation . | . . . Extermination . | . . . Reinforcement 2 | . 1 1 Assault . | . . . Garrison . | . . . Intercept . | . . . Construction Impeded . | . . . Haulers Reinforced . | . . . Stealth | -11 -10 -9 --------- Run | Scr Mat Mat Distress Signals 1 | . 1 . Communications Jammed . | . . . Distress Signals . | . . . Times Spotted 33 | . 16 17 Peak Tracking Total 5 | . 4 5 Tactical Retreats 2 | . 1 1 Traps | -11 -10 -9 ------- Run | Scr Mat Mat Traps Triggered 1 | . 1 . Indirectly . | . . . Trap Hack Attempts . | . . . Triggered . | . . . Disarmed . | . . . Reprogrammed . | . . . Reused . | . . . Traps Extracted . | . . . Installed . | . . . Triggered . | . . . Machines | -11 -10 -9 ---------- Run | Scr Mat Mat Machines Disabled . | . . . Max in Single Turn . | . . . Machines Sabotaged . | . . . Garrisons Compromised . | . . . Overloaded Fab Kills . | . . . Fab Network Shutdowns . | . . . Hacking | -11 -10 -9 --------- Run | Scr Mat Mat Machines Accessed . | . . . Terminals . | . . . Fabricators . | . . . Repair Stations . | . . . Recycling Units . | . . . Scanalyzers . | . . . Garrison Access . | . . . Total Hacks . | . . . Successful . | . . . Failed . | . . . Catastrophic . | . . . Database Lockouts . | . . . Manual . | . . . Terminals . | . . . Fabricators . | . . . Repair Stations . | . . . Recycling Units . | . . . Scanalyzers . | . . . Garrison Access . | . . . Terminal Hacks . | . . . Fabricator Hacks . | . . . Repair Station Hacks . | . . . Recycling Unit Hacks . | . . . Scanalyzer . | . . . Garrison Access Hacks . | . . . Unauthorized Hacks . | . . . Terminals . | . . . Fabricators . | . . . Repair Stations . | . . . Recycling Units . | . . . Scanalyzers . | . . . Garrison Access . | . . . Data Cores Recovered . | . . . Used . | . . . Hacking Detections . | . . . Full Trace Events . | . . . Feedback Events . | . . . Feedback Blocked . | . . . Robot Schematics Acquired . | . . . Robots Built . | . . . Matter . | . . . Time . | . . . Total Robot Build Rating . | . . . Part Schematics Acquired . | . . . Parts Built . | . . . Matter . | . . . Time . | . . . Total Part Build Rating . | . . . Parts Repaired . | . . . Time . | . . . Parts Recycled . | . . . Recycled Matter . | . . . Retrieved Matter . | . . . Retrieved Components . | . . . Parts Scanalyzed . | . . . Part Schematics Acquired . | . . . Parts Damaged . | . . . Bothacking | -11 -10 -9 ------------ Run | Scr Mat Mat Used RIF Installer . | . . . Robots Hacked . | . . . Non-combat . | . . . Combat . | . . . Robot Hacks Applied . | . . . Relay Couplers Released . | . . . Robots Rewired . | . . . Allies Hacked . | . . . Hacks Repelled . | . . . Allies | -11 -10 -9 -------- Run | Scr Mat Mat Total Allies . | . . . Largest Group . | . . . Highest-Rated Group . | . . . Highest-Rated Ally . | . . . Total Orders . | . . . Ally Attacks . | . . . Total Damage . | . . . Kills . | . . . Allies Corrupted . | . . . Allies Melted . | . . . Intel | -11 -10 -9 ------- Run | Scr Mat Mat Robot Analysis Total . | . . . Derelict Logs Recovered . | . . . Drone Launches . | . . . Drone Recoveries . | . . . Exploration | -11 -10 -9 ------------- Run | Scr Mat Mat Turns Passed 729 | 39 421 269 Spaces Moved 752 | 32 538 182 Core 9 | 9 . . Treads . | . . . Legs . | . . . Wheels 101 | 23 78 . Hover . | . . . Flight 642 | . 460 182 Fastest Speed 37 | 50 37 37 Average Speed 42 | 71 43 37 Slowest Speed 80 | 80 80 40 Overloaded Moves . | . . . Propulsion Burnouts . | . . . Robots Hopped . | . . . Cave-ins Triggered . | . . . Exploration Rate (%) 40 | 4 92 25 Regions Visited 2 Branch Regions . Pre-discovered Areas . | . . . Known Exits Taken . | . . . Unknown Exits Taken 2 | 1 1 . Scrap Searched . | . . . Spaces Dug . | . . . Terrain Destroyed 6 | . 6 . Melee . | . . . Projectile . | . . . AOE 6 | . 6 . Actions | -11 -10 -9 --------- Run | Scr Mat Mat Total 967 | 41 636 290 Wait 61 | . 18 43 Move 750 | 31 537 182 Hop . | . . . Pick Up . | . . . Fast Attach 13 | 7 4 2 Attach . | . . . Detach . | . . . Swap 1 | . 1 . Drop 5 | . 5 . Fire 19 | 3 16 . Melee 84 | . 37 47 Ram . | . . . Kick . | . . . Crush . | . . . Escape Stasis . | . . . Rewire . | . . . Trap . | . . . Miscellaneous 34 | . 18 16 Route ------- -11/Scrapyard -10/Materials (discovered 5 exits: [*Mat x3] / [*Min x2]) -9/Materials (discovered 1 exit: [*Mat]) History --------- Turn | Location | Event 6 | -11/Scrapyard | Upgraded with Power slot (x1) 6 | -11/Scrapyard | Upgraded with Propulsion slot (x1) 6 | -11/Scrapyard | Upgraded with Utility slot (x1) 16 | -11/Scrapyard | Discovered new exit (range 16) 40 | -11/Scrapyard | Entered Materials 207 | -10/Materials | Discovered new exit (range 7) 323 | -10/Materials | Discovered new exit (range 12) 384 | -10/Materials | Discovered new exit (range 15) 407 | -10/Materials | Discovered new exit (range 16) 435 | -10/Materials | Build established: Scavenger-Mutant 440 | -10/Materials | Discovered new exit (range 9) 461 | -10/Materials | Entered another Materials area 463 | -9/Materials | Reached level 2 463 | -9/Materials | Upgraded with Utility slot (x1) 467 | -9/Materials | Reached level 3 477 | -9/Materials | Upgraded with Utility slot (x1) 631 | -9/Materials | Discovered new exit (range 13) 690 | -9/Materials | Core integrity fell below 50% 710 | -9/Materials | Core integrity fell below 20% 730 | -9/Materials | Destroyed by Y-45 Defender with Beam Rifle Last Messages --------------- 00610_ Acquired 20 matter. 00631_ EXIT=FOUND 00654_ G-34 Mercenary knocked back. 00671_ Flight Unit destroyed. 00672_ G-34 Mercenary destroyed. 00675_ K-01 Serf collects debris. 00689_ Destroyed Lgt. Nuclear Core. 00689_ Destroyed Aluminum Leg. 00689_ G-47 Trooper system corrupted by crushing effect. 00690_ G-47 Trooper system terminally corrupted. 00690_ Aluminum Leg fried. 00690_ K-01 Serf collects debris. 00691_ Lgt. Ion Engine destroyed. 00694_ K-01 Serf collects debris. 00699_ R-06 Scavenger collects Sml. Laser. 00703_ R-06 Scavenger collects Heat Sink. 00706_ Lgt. Nuclear Core destroyed. 00714_ G-34 Mercenary destroyed. 00715_ K-01 Serf collects debris. 00725_ R-06 Scavenger collects Heat Sink. Map ----- +----------------------------------------------------+ | ????????????###?# ##=## [ ####?##?#??? | | ????????????####? ? ## #############???? ?? | | ?????????????#??? "?##%## #######?##??? | | ??????????????### ?T"##!## ##########??? | | ?????????????#### ""##=## #?#####??#??? | | ????????????#?### # ! # ###?#####???? | | ???????????????##?##?### + ##?##?##????? | | ??????????????#?#??##### # [ ##?#####????? | | ???????????#######??##### ## ####?#??????? | | ??????????#??## ######### #############??????? | | ?????????????# ! ## ###??#?### ??"????? | | ?????????????# ## #####???## ???????? | | ????????????## * ## ###?#####? ????????? | | ????????#????# ## ########???????????? | | ????????#??#?# """ """ ## # #???? ? ????? | | ??????????#?#? """ """ ## # #?? ? ??????? | | ?????????#?### """ """ ## # """ # ?????#????? | | ?????????????# + + """ # ??? ?????? | | ?????????##########+####### """ # T??? ?? ??? | | ????????#?######## r / # ????? ???? | | ?????? #?######### #####+#### ???????? | | ???????##?# + ##### ###? ????????? | | ????????### ?? # ##### ##?# ???????? | | ????????###? # ##?## #### ????????? | | ???????#?## ? # ##### ####? ?#??????? | | ???????#### ? ?# @ Y #?#? ???????? | | ??????? ### ? + Y##k#####+########???????? | | ??????# ?###?#?### # % ######?#??????? | | ??????#?## ???# !# ###?###?#?????? | | ??????#??# ?# w /% #?####????????? | | ????????#?? ? ?## #%[ #?#####???????? | | ??????? ## ## ##################??????? | | ??????? ?# ?# ##? #####???????? | | ??????? ## ?? ## #? ? #?#####??????? | | ??????? #?####?#? # ? ?????###??#?#????? | | ???????? #? ? ? ? #??#??? ?????? | | ???????? ? ? + """ ?"" ####??#??????? | | ???????????? ? ! ? ?"" """ ##?##????????? | | ??????????##?#+## # ""? "?? ##?#?????????? | | ???????????? ?## ##? ?#?#??????????? | | ????????????" ???# ###?###?###?#???????????? | | ????????????? ??## ##?###?####?#???????????? | | ????????????? ## < ###??####???????????????? | | ?????????????????# ####?#??????????????????? | | ?????????????????####????##??????????????????? | | ??????????????????????#??#???????????????????? | | ?????????????????????????????????????????????? | | ?????????????????????????????????????????????? | | ?????????????????????????????????????????????? | | ?????????????????????????????????????????????? | +----------------------------------------------------+ Best States ------------- Heat Dissipation 35 Energy Generation 19 Energy Capacity 185 Matter Stores 300 Matter Capacity 300 Sight Range 17 Robot Scan Range 2 Terrain Scan Range 16 Terrain Scan Density 160 Evasion (%) 62 Item Schematics ----------------- None Robot Schematics ------------------ None Fabricated ------------ Nothing Alien Tech Used ----------------- None Achievements -------------- None Challenges ------------ None RPGLIKE | -11 -10 -9 --------- Run | Scr Mat Mat Levels Raised 2 | . . 2 XP Earned 7010 | 3000 1475 2535 XP Spent 6000 | 3000 . 3000 Upgrades 16 | 8 . 8 Power Slot 1 | 1 . . Propulsion Slot 1 | 1 . . Utility Slot 3 | 1 . 2 Mass Support 4 | 1 . 3 Sight Range 1 | . . 1 Sensor Range 1 | . . 1 Terrain Scan Density 1 | . . 1 Melee Accuracy 4 | 4 . . Protomatter Created 362 | . 194 168 Integrity Restored 655 | . 313 342 Core 567 | . 250 317 Parts 88 | . 63 25 Protomatter Decayed 109 | . 74 35 Game ------ Seed CoolantHoverShredder Manual? 0 Play Time 00:16:03 Cumulative 72.5 hours Start 2019.12.20 @ 14:50:45 End 2019.12.20 @ 15:03:57 Sessions 1 Manual Loads 0 Difficulty Rogue Special Mode Winter2019/RPGLIKE Game No. 119 Rogue 119 Adventurer 0 Explorer 0 Win Type - Total 0 Types 0/0/0/0/0/0/0 Lore% 22 Gallery% 27 Achievement% 26 Wizard Run 0 Options --------- ASCII 0 Keyboard 0 Movement Mouse Keybinds 0 Fullscreen 1 Font 18/SmallcapsGlow Map View 76x50 Tactical HUD 1 Map Filters NONE Filters LOW_CONTRAST(13,24,33)|BRIGHTNESS(120)|SATURATION(80) Steam 1 RUN: 7877a594-6bbe-4d56-a8d3-b4708c25ed3c